bitfinex/quotes_SOLUSD_20240829
["timestamp","ask_amount","ask_price","bid_price","bid_amount"]
[1724896020651,65.25098,143.75,143.67,6.5889]
[1724896020951,20.0,143.75,143.68,15.464]
[1724896021447,26.9566,143.75,143.68,15.464]
[1724896022247,6.9581,143.72,143.68,15.464]
[1724896022545,45.25098,143.71,143.68,15.464]
[1724896022743,6.9573,143.74,143.68,15.464]
[1724896023048,65.25098,143.73,143.68,15.464]
[1724896025643,20.0,143.73,143.68,15.464]
[1724896025947,380.3,143.79,143.68,15.464]
[1724896025948,32.58315113,143.76,143.68,15.464]
[1724896026143,6.9575,143.73,143.68,15.464]
[1724896026729,0.12549,143.72,143.68,15.464]
[1724896027048,45.25098,143.73,143.68,15.464]
[1724896029362,52.20848,143.73,143.68,15.464]
[1724896031756,6.958,143.72,143.68,15.464]
[1724896032062,45.25098,143.71,143.68,15.464]
[1724896032244,45.25098,143.71,143.64,15.0689]
[1724896032444,20.0,143.7,143.64,15.0689]
[1724896035838,52.21038,143.69,143.64,15.0689]
[1724896037137,6.9599,143.68,143.64,15.0689]
[1724896037333,45.25098,143.67,143.64,15.0689]
[1724896037945,0.25098,143.67,143.64,15.0689]
[1724896038506,20.0,143.7,143.64,15.0689]
[1724896039547,38.90665113,143.76,143.64,15.0689]
[1724896039857,6.958,143.72,143.64,15.0689]
[1724896040055,32.58315113,143.7,143.6,15.8428]
[1724896040355,32.58315113,143.68,143.6,15.8428]
[1724896040659,20.0,143.67,143.6,15.8428]
[1724896040859,0.25098,143.66,143.6,15.8428]
[1724896041740,7.21188,143.66,143.6,15.8428]
[1724896041949,45.0,143.65,143.6,15.8428]
[1724896042354,45.25098,143.66,143.6,15.8428]
[1724896043479,20.0,143.67,143.6,15.8428]
[1724896043652,6.9601,143.68,143.6,15.8428]
[1724896043968,20.0,143.67,143.6,15.8428]
[1724896045567,20.0,143.68,143.6,15.8428]
[1724896045943,6.9581,143.72,143.62,16.2028]
[1724896046471,6.9579,143.72,143.62,16.2028]
[1724896047270,52.08389,143.71,143.62,16.2028]
[1724896047474,20.12549,143.7,143.62,16.2028]
[1724896048169,20.0,143.7,143.62,16.2028]
[1724896049063,262.7566,143.75,143.65,48.07815113]
[1724896049261,6.9566,143.75,143.65,48.07815113]
[1724896050147,6.9571,143.74,143.65,15.495]
[1724896050559,45.25098,143.73,143.65,15.495]
[1724896056181,0.12549,143.73,143.65,15.495]
[1724896056352,20.0,143.73,143.65,15.495]
[1724896058177,20.0,143.73,143.65,48.07815113]
[1724896060685,20.0,143.73,143.66,15.9486]
[1724896060868,6.9546,143.79,143.69,38.89525113]
[1724896061078,6.9551,143.78,143.7,15.9486]
[1724896062068,6.9551,143.78,143.7,15.91565727]
[1724896062267,0.12549,143.77,143.7,15.91565727]
[1724896063498,20.12549,143.77,143.7,15.91565727]
[1724896065295,77.58315113,143.76,143.7,15.91565727]
[1724896065477,6.9573,143.74,143.7,15.91565727]
[1724896065667,51.9575,143.73,143.7,15.91565727]
[1724896065868,7.08299,143.73,143.7,15.91565727]
[1724896069094,0.12549,143.73,143.7,15.91565727]
[1724896069268,65.25098,143.73,143.7,15.91565727]
[1724896069974,72.20848,143.73,143.7,15.91565727]
[1724896070171,65.25098,143.73,143.67,15.556]
[1724896070494,6.9585,143.71,143.67,15.556]
[1724896071785,45.12549,143.7,143.67,15.556]
[1724896072785,0.12549,143.71,143.67,15.556]
[1724896072987,45.25098,143.72,143.67,15.556]
[1724896073193,52.20898,143.72,143.67,15.556]
[1724896073567,6.9587,143.71,143.67,15.556]
[1724896073876,45.25098,143.7,143.67,15.556]
[1724896074081,6.958,143.72,143.67,15.556]
[1724896074282,45.25098,143.71,143.67,15.556]
[1724896075495,52.20958,143.71,143.67,15.556]
[1724896075696,6.9593,143.7,143.67,15.556]
[1724896076174,58.05347534,143.69,143.62,6.0779]
[1724896076371,0.12549,143.68,143.63,15.5518]
[1724896076571,45.12549,143.68,143.63,15.5518]
[1724896076975,0.12549,143.68,143.63,15.5518]
[1724896077175,0.25098,143.68,143.63,15.5518]
[1724896077389,45.0,143.69,143.63,15.5518]
[1724896077595,45.0,143.7,143.63,15.5518]
[1724896078301,6.958,143.72,143.63,15.5518]
[1724896078468,20.0,143.71,143.65,15.5311]
[1724896078672,26.9575,143.73,143.65,15.5311]
[1724896078891,20.0,143.73,143.65,15.5311]
[1724896079095,20.0,143.73,143.66,6.4846]
[1724896079589,20.0,143.73,143.67,15.5311]
[1724896079768,20.0,143.74,143.67,15.5311]
[1724896079973,380.3,143.75,143.67,15.5311]
[1724896080189,6.9562,143.76,143.67,15.5311]
[1724896080791,45.25098,143.75,143.67,15.5311]
[1724896080980,0.12549,143.75,143.67,15.5311]
[1724896081177,6.9562,143.76,143.68,13.05347534]
[1724896081393,20.0,143.75,143.69,15.9665]
[1724896081594,13.05347534,143.79,143.7,6.2981]
[1724896081793,6.9551,143.78,143.7,6.2981]
[1724896082998,85.25995534,143.77,143.7,6.2981]
[1724896083199,65.25995534,143.77,143.7,6.2981]
[1724896083385,20.0,143.76,143.7,6.2981]
[1724896086498,20.0,143.76,143.71,15.5579]
[1724896092202,39.55936932,143.79,143.71,15.5579]
[1724896092408,65.25098,143.78,143.71,15.5579]
[1724896092697,72.20608,143.78,143.71,15.5579]
[1724896096790,65.25098,143.78,143.71,15.5579]
[1724896099010,72.20598,143.78,143.71,15.5579]
[1724896104626,13.03984049,143.77,143.71,15.5579]
[1724896104796,72.20708,143.76,143.71,15.5579]
[1724896105196,13.03984049,143.75,143.71,15.5579]
[1724896105419,65.25098,143.74,143.71,15.5579]
[1724896105620,65.25098,143.74,143.61,15.0997]
[1724896105621,65.19920245,143.72,143.61,15.0997]
[1724896105826,6.9605,143.67,143.61,15.0997]
[1724896106209,20.0,143.66,143.61,15.0997]
[1724896106802,20.0,143.67,143.61,15.0997]
[1724896108418,26.9604,143.67,143.61,15.0997]
[1724896124330,6.961,143.66,143.61,15.0997]
[1724896124531,20.00084049,143.66,143.61,15.0997]
[1724896125840,52.08689,143.65,143.61,15.0997]
[1724896126009,52.21238,143.65,143.61,15.0997]
[1724896126611,45.25098,143.65,143.61,15.0997]
[1724896126839,20.00174049,143.64,143.61,15.0997]
[1724896128816,13.03984049,143.64,143.61,15.0997]
[1724896129535,45.25098,143.63,143.61,15.0997]
[1724896129855,52.21358,143.63,143.61,15.0997]
[1724896131221,52.21358,143.63,143.57,16.5996]
[1724896132922,20.00274049,143.62,143.57,16.5996]
[1724896135143,52.21338,143.63,143.57,16.5996]
[1724896135326,20.0,143.62,143.57,16.5996]
[1724896141833,20.0,143.63,143.57,16.5996]
[1724896142040,6.2725,143.71,143.61,15.5903]
[1724896142340,6.9599,143.68,143.61,15.5903]
[1724896143137,7.50104502,143.71,143.64,13.03984049]
[1724896144946,7.50104502,143.71,143.63,15.4188]
[1724896145635,20.0,143.7,143.63,15.4188]
[1724896148457,13.03984049,143.72,143.64,13.03984049]
[1724896148653,20.0,143.71,143.64,13.03984049]
[1724896149932,13.03984049,143.7,143.63,15.4188]
[1724896151076,13.03984049,143.68,143.63,15.4188]
[1724896152141,20.00004049,143.68,143.63,15.4188]
[1724896152349,65.0,143.67,143.63,15.4188]
[1724896154556,20.25202049,143.66,143.63,15.4188]
[1724896154739,20.0,143.65,143.63,15.4188]
[1724896172867,2.87796231,143.71,143.63,15.4188]
[1724896173173,6.9597,143.69,143.63,15.4188]
[1724896173350,20.0,143.68,143.63,15.4188]
[1724896173751,20.0,143.68,143.64,6.0345]
[1724896174045,19.99884049,143.7,143.64,6.0345]
[1724896174046,6.959,143.7,143.64,6.0345]
[1724896174369,19.99884049,143.7,143.64,6.0345]
[1724896176364,20.0,143.69,143.64,6.0345]
[1724896178371,20.0,143.7,143.64,6.0345]
[1724896178853,20.0,143.71,143.65,16.3491]
[1724896179171,19.99734049,143.73,143.65,16.3491]
[1724896179377,20.0,143.72,143.65,16.3491]
[1724896179945,26.9579,143.72,143.65,16.3491]
[1724896182255,20.0,143.72,143.65,16.3491]
[1724896183257,19.99694049,143.74,143.67,15.5866]
[1724896183258,20.0,143.73,143.67,15.5866]
[1724896183968,13.03984049,143.74,143.67,15.5866]
[1724896185479,20.0,143.73,143.67,15.5866]
[1724896189358,6.9572,143.74,143.67,15.5866]
[1724896190960,20.0,143.73,143.67,15.5866]
[1724896191982,20.0,143.73,143.68,6.3908]
[1724896192196,20.0,143.74,143.68,6.3908]
[1724896192564,20.0,143.75,143.68,6.3908]
[1724896192977,39.99674049,143.75,143.68,6.3908]
[1724896193571,45.25098,143.74,143.68,6.3908]
[1724896194871,52.20798,143.74,143.68,6.3908]
[1724896195279,6.9575,143.73,143.68,6.3908]
[1724896195669,52.20808,143.74,143.68,6.3908]
[1724896199592,20.0,143.75,143.68,6.3908]
[1724896200189,26.9565,143.75,143.68,6.3908]
[1724896200390,20.0,143.74,143.68,6.3908]
[1724896200991,20.0,143.74,143.69,15.2806]
[1724896201186,20.0,143.75,143.69,15.2806]
[1724896202394,0.12549,143.74,143.69,15.2806]
[1724896202567,52.20838,143.74,143.69,15.2806]
[1724896202769,33.03984049,143.75,143.69,15.2806]
[1724896202970,20.0,143.75,143.69,15.2806]
[1724896203188,39.99664049,143.75,143.69,15.2806]
[1724896203374,13.03984049,143.73,143.69,15.2806]
[1724896203689,45.0,143.72,143.69,15.2806]
[1724896203983,0.12549,143.71,143.69,15.2806]
[1724896204183,0.12549,143.71,143.65,15.5624]
[1724896204184,33.16533049,143.71,143.65,15.5624]
[1724896204383,45.12549,143.7,143.65,15.5624]
[1724896206673,33.16533049,143.71,143.65,15.5624]
[1724896206991,20.0,143.71,143.65,28.60224049]
[1724896207163,20.0,143.73,143.65,28.60224049]
[1724896208298,26.9575,143.73,143.65,28.60224049]
[1724896215016,20.0,143.73,143.65,28.60224049]
[1724896215296,20.0,143.73,143.66,16.4151]
[1724896217782,20.0,143.73,143.67,6.2147]
[1724896217985,20.0,143.74,143.67,6.2147]
[1724896220692,26.9571,143.74,143.67,6.2147]
[1724896222203,64.99734049,143.73,143.67,6.2147]
[1724896222506,0.12549,143.72,143.67,6.2147]
[1724896222902,6.9598,143.69,143.67,6.2147]
[1724896223106,19.99964049,143.69,143.66,16.4151]
[1724896223311,6.9599,143.68,143.66,16.4151]
[1724896223520,6.9599,143.68,143.63,6.4368]
[1724896223521,13.03984049,143.67,143.63,6.4368]
[1724896224781,13.16533049,143.69,143.63,6.4368]
[1724896224980,20.0,143.68,143.63,6.4368]
[1724896225280,19.99864049,143.71,143.63,6.4368]
[1724896225488,65.25098,143.7,143.63,6.4368]
[1724896226403,72.20998,143.7,143.63,6.4368]
[1724896232980,65.25098,143.7,143.63,6.4368]
[1724896234710,6.9574,143.74,143.65,13.03984049]
[1724896235014,6.9574,143.74,143.66,16.259]
[1724896235786,0.12549,143.73,143.66,16.259]
[1724896236102,65.25098,143.73,143.66,16.259]
[1724896237910,65.0,143.73,143.67,6.0827]
[1724896238208,20.0,143.73,143.67,6.0827]
[1724896238506,20.0,143.74,143.67,6.0827]
[1724896239088,26.957,143.74,143.67,6.0827]
[1724896245522,26.957,143.74,143.67,19.12254049]
[1724896248022,20.0,143.74,143.67,6.0827]
[1724896248204,58.29082049,143.73,143.67,6.0827]
[1724896248397,65.24832049,143.73,143.67,6.0827]
[1724896248721,52.20848,143.73,143.67,6.0827]
[1724896249694,26.957,143.74,143.67,6.0827]
[1724896254425,20.0,143.74,143.67,6.0827]
[1724896254605,27.08209,143.75,143.67,6.0827]
[1724896254805,45.12549,143.74,143.67,6.0827]
[1724896255027,20.0,143.73,143.67,6.0827]
[1724896255603,58.29082049,143.72,143.67,6.0827]
[1724896255809,20.0,143.71,143.67,6.0827]
[1724896257325,13.03984049,143.7,143.66,16.259]
[1724896257532,6.96,143.68,143.66,16.259]
[1724896257830,13.03984049,143.68,143.66,16.259]
[1724896260430,7.08499,143.69,143.66,16.259]
[1724896260732,45.12549,143.68,143.66,16.259]
[1724896260931,20.0,143.71,143.66,16.259]
[1724896265031,20.0,143.72,143.66,16.259]
[1724896267708,26.9581,143.72,143.66,16.259]
[1724896268438,39.99784049,143.72,143.66,16.259]
[1724896268617,45.12549,143.71,143.66,16.259]
[1724896269632,45.0,143.71,143.66,16.259]
[1724896269840,20.0,143.72,143.66,16.259]
[1724896272943,26.958,143.72,143.66,16.259]
[1724896274818,20.0,143.72,143.66,16.259]
[1724896275021,29.31673808,143.76,143.66,16.259]
[1724896275022,20.0,143.75,143.67,6.1153]
[1724896275327,0.12549,143.74,143.67,6.1153]
[1724896275928,7.08249,143.74,143.67,6.1153]
[1724896276132,20.0,143.73,143.67,6.1153]
[1724896277123,20.0,143.73,143.67,7.50714237]
[1724896277525,20.0,143.73,143.68,1.39184385]
[1724896277727,20.0,143.73,143.69,16.3405]
[1724896277928,20.0,143.74,143.69,16.3405]
[1724896278656,20.0,143.75,143.69,29.38034049]
[1724896278820,22.91456826,143.8,143.69,29.38034049]
[1724896278821,20.0,143.76,143.69,29.38034049]
[1724896279026,6.9552,143.78,143.7,6.5936]
[1724896279248,6.9552,143.78,143.71,13.03984049]
[1724896279441,380.3,143.81,143.74,6.5936]
[1724896279628,6.9535,143.82,143.75,15.3808]
[1724896281850,20.0,143.81,143.75,15.3808]
[1724896282639,26.9536,143.81,143.75,15.3808]
[1724896282840,58.16533049,143.8,143.75,15.3808]
[1724896283044,6.9554,143.78,143.75,15.3808]
[1724896283249,45.12549,143.77,143.75,15.3808]
[1724896283852,33.03984049,143.76,143.71,21.8301]
[1724896284153,13.03984049,143.74,143.71,15.2945]
[1724896284329,13.03984049,143.72,143.68,6.5356]
[1724896285234,27.08299,143.73,143.68,6.5356]
[1724896285433,20.0,143.73,143.68,6.5356]
[1724896286334,20.0,143.74,143.68,6.5356]
[1724896286747,45.0,143.73,143.68,6.5356]
[1724896286943,20.0,143.72,143.68,6.5356]
[1724896287441,20.0,143.73,143.68,6.5356]
[1724896287956,0.12549,143.72,143.68,6.5356]
[1724896288269,0.25098,143.72,143.68,6.5356]
[1724896288431,45.25098,143.72,143.68,6.5356]
[1724896290951,20.0,143.73,143.68,6.5356]
[1724896295837,6.9565,143.75,143.68,6.5356]
[1724896296145,20.0,143.74,143.68,6.5356]
[1724896299851,26.9559,143.77,143.68,6.5356]
[1724896300064,45.12549,143.76,143.68,6.5356]
[1724896300247,20.0,143.75,143.68,6.5356]
[1724896300859,6.9585,143.71,143.67,15.2945]
[1724896301182,32.61650975,143.71,143.67,15.2945]
[1724896304166,6.959,143.7,143.67,15.2945]
[1724896304346,0.12549,143.69,143.64,21.3179]
[1724896305359,52.08449,143.7,143.64,21.3179]
[1724896305360,45.12549,143.7,143.64,21.3179]
[1724896305676,6.9585,143.71,143.64,21.3179]
[1724896305855,20.0,143.7,143.64,21.3179]
[1724896308067,20.0,143.7,143.64,34.36690088]
[1724896308370,20.0,143.72,143.64,34.36690088]
[1724896311674,20.0,143.72,143.64,21.3179]
[1724896312957,20.0,143.73,143.64,21.3179]
[1724896313782,26.9575,143.73,143.64,21.3179]
[1724896314165,20.0,143.73,143.64,21.3179]
[1724896314369,20.0,143.73,143.65,48.64442453]
[1724896316886,20.0,143.73,143.66,17.32315948]
[1724896317071,6.9566,143.75,143.66,17.32315948]
[1724896317388,20.0,143.74,143.66,17.32315948]
[1724896318575,20.0,143.74,143.66,15.9335]
[1724896318886,26.9571,143.74,143.66,15.9335]
[1724896319074,45.25098,143.73,143.66,15.9335]
[1724896319591,52.20848,143.73,143.66,15.9335]
[1724896323469,45.25098,143.73,143.66,15.9335]
[1724896324370,6.9581,143.72,143.66,15.9335]
[1724896324672,52.20838,143.73,143.66,15.9335]
[1724896326169,52.20858,143.73,143.66,15.9335]
[1724896326774,6.9581,143.72,143.66,15.9335]
[1724896327087,45.12549,143.71,143.66,15.9335]
[1724896327298,45.12549,143.73,143.66,15.9335]
[1724896327299,52.08299,143.73,143.66,15.9335]
[1724896330387,7.08349,143.72,143.66,15.9335]
[1724896330604,20.13179004,143.72,143.66,15.9335]
[1724896330891,45.12549,143.71,143.66,15.9335]
[1724896332798,0.12549,143.72,143.66,15.9335]
[1724896333097,33.04830004,143.74,143.66,28.98180004]
[1724896333098,20.0,143.74,143.66,28.98180004]
[1724896333474,20.0,143.73,143.66,28.98180004]
[1724896333670,20.0,143.75,143.68,13.04830004]
[1724896333886,6.9554,143.78,143.69,16.2885]
[1724896334492,6.9554,143.78,143.7,13.04830004]
[1724896335691,45.0,143.77,143.7,13.04830004]
[1724896335883,20.0,143.76,143.7,13.04830004]
[1724896337508,20.0,143.76,143.71,21.8818]
[1724896337697,20.0,143.78,143.71,21.8818]
[1724896339913,13.04830004,143.81,143.73,15.2902]
[1724896340408,6.9532,143.82,143.74,6.4596]
[1724896340573,13.04830004,143.83,143.74,19.50790004]
[1724896340778,13.04830004,143.83,143.75,15.2902]
[1724896342282,20.0,143.82,143.75,15.2902]
[1724896343887,20.0,143.84,143.75,15.2902]
[1724896344203,13.04830004,143.86,143.77,16.6511]
[1724896344401,19.99950004,143.86,143.77,16.6511]
[1724896345507,65.25098,143.85,143.77,16.6511]
[1724896345685,13.04830004,143.84,143.78,6.2371]
[1724896345885,65.25098,143.83,143.78,6.2371]
[1724896346092,13.04830004,143.82,143.78,6.2371]
[1724896346307,45.25098,143.81,143.78,6.2371]
[1724896346486,45.12549,143.81,143.78,6.2371]
[1724896346689,13.04830004,143.82,143.78,6.2371]
[1724896347605,45.0,143.81,143.78,6.2371]
[1724896347799,13.04830004,143.82,143.78,6.2371]
[1724896348198,13.04830004,143.82,143.77,16.6511]
[1724896349697,20.00150004,143.82,143.77,16.6511]
[1724896349902,13.04830004,143.82,143.77,16.6511]
[1724896352003,20.0,143.83,143.77,16.6511]
[1724896355510,20.00250004,143.8,143.77,16.6511]
[1724896355713,13.04830004,143.8,143.77,16.6511]
[1724896355918,20.12699004,143.82,143.77,16.6511]
[1724896356110,13.04830004,143.82,143.77,16.6511]
[1724896356695,45.0,143.81,143.77,16.6511]
[1724896356898,20.0,143.83,143.77,16.6511]
[1724896357101,20.00030004,143.85,143.77,16.6511]
[1724896357312,13.04830004,143.83,143.77,16.6511]
[1724896357516,13.04830004,143.81,143.77,16.6511]
[1724896357826,45.0,143.8,143.77,16.6511]
[1724896360520,20.0,143.84,143.77,16.6511]
[1724896361098,26.9521,143.84,143.77,16.6511]
[1724896361423,20.0,143.84,143.77,16.6511]
[1724896362715,19.96520143,143.84,143.77,16.6511]
[1724896363917,26.91740143,143.84,143.77,16.6511]
[1724896364119,19.96520143,143.84,143.77,16.6511]
[1724896365234,26.91740143,143.84,143.77,16.6511]
[1724896366209,13.04830004,143.83,143.77,16.6511]
[1724896366530,20.0,143.82,143.77,16.6511]
[1724896370927,20.0,143.83,143.77,16.6511]
[1724896371131,20.0,143.84,143.77,16.6511]
[1724896372330,6.9504,143.88,143.8,15.9461]
[1724896372514,19.99870004,143.88,143.8,15.9461]
[1724896373319,6.949,143.91,143.83,15.9271]
[1724896373544,13.04830004,143.9,143.83,15.9271]
[1724896376111,20.0,143.89,143.83,15.9271]
[1724896376730,19.99670004,143.92,143.83,15.9271]
[1724896376911,65.25098,143.91,143.83,15.9271]
[1724896378130,72.19978,143.91,143.83,15.9271]
[1724896378334,13.04830004,143.9,143.83,15.9271]
[1724896381727,72.19978,143.91,143.83,15.9271]
[1724896385841,65.25098,143.91,143.83,15.9271]
[1724896386631,65.12549,143.91,143.83,15.9271]
[1724896387021,20.0,143.91,143.85,21.9874]
[1724896387222,20.0,143.92,143.85,21.9874]
[1724896387624,19.99610004,143.93,143.85,21.9874]
[1724896388332,255.8,143.94,143.85,21.9874]
[1724896388333,13.04830004,143.91,143.85,21.9874]
[1724896388519,45.25098,143.9,143.85,21.9874]
[1724896389219,255.8,143.94,143.85,21.9874]
[1724896389220,13.04830004,143.92,143.85,21.9874]
[1724896389419,6.9501,143.89,143.85,21.9874]
[1724896389740,19.99760004,143.9,143.85,21.9874]
[1724896390044,52.20078,143.89,143.85,21.9874]
[1724896391525,52.20078,143.89,143.85,15.4791]
[1724896392040,19.99850004,143.88,143.85,15.4791]
[1724896392223,65.25098,143.87,143.85,15.4791]
[1724896395336,72.20168,143.87,143.85,15.4791]
[1724896396425,65.25098,143.87,143.85,15.4791]
[1724896401450,13.04830004,143.86,143.82,16.3881]
[1724896401630,72.20178,143.87,143.82,16.3881]
[1724896401831,65.25098,143.87,143.82,16.3881]
[1724896402651,72.20178,143.87,143.82,16.3881]
[1724896404220,20.0,143.87,143.82,16.3881]
[1724896407750,20.0,143.88,143.82,16.3881]
[1724896407941,20.0,143.89,143.82,16.3881]
[1724896408948,20.0,143.89,143.82,29.43640004]
[1724896409146,20.12549,143.9,143.82,29.43640004]
[1724896409347,6.9489,143.91,143.82,29.43640004]
[1724896410833,20.0,143.9,143.82,29.43640004]
[1724896411957,39.99750004,143.9,143.82,16.3881]
[1724896412152,33.04830004,143.9,143.82,16.3881]
[1724896412454,13.04830004,143.88,143.82,16.3881]
[1724896414660,45.25098,143.89,143.82,16.3881]
[1724896415148,33.04830004,143.9,143.82,16.3881]
[1724896415361,39.99760004,143.9,143.82,16.3881]
[1724896416335,45.25098,143.89,143.82,16.3881]
[1724896417843,33.04830004,143.9,143.82,16.3881]
[1724896422469,39.99770004,143.9,143.82,16.3881]
[1724896423270,45.25098,143.89,143.82,16.3881]
[1724896425244,33.04830004,143.9,143.82,29.43640004]
[1724896425462,33.04830004,143.9,143.83,15.9041]
[1724896425772,20.0,143.9,143.83,15.9041]
[1724896428649,20.0,143.9,143.84,6.5854]
[1724896428862,20.0,143.91,143.85,15.9041]
[1724896429041,20.0,143.92,143.85,15.9041]
[1724896430050,26.9485,143.92,143.85,15.9041]
[1724896430256,45.25098,143.91,143.85,15.9041]
[1724896430461,58.29928004,143.91,143.85,15.9041]
[1724896431648,13.17379004,143.91,143.85,15.9041]
[1724896431855,13.04830004,143.91,143.85,15.9041]
[1724896432875,13.04830004,143.89,143.85,15.9041]
[1724896433576,19.99840004,143.89,143.85,15.9041]
[1724896436868,13.04830004,143.89,143.85,15.9041]
[1724896437455,20.12549,143.88,143.85,15.9041]
[1724896437658,13.04830004,143.87,143.85,15.9041]
[1724896437862,58.04830004,143.87,143.85,15.9041]
[1724896441263,20.12549,143.88,143.85,15.9041]
[1724896441557,20.0,143.88,143.85,15.9041]
[1724896443888,45.25098,143.87,143.85,15.9041]
[1724896445265,20.0,143.88,143.85,15.9041]
[1724896445586,26.9498,143.89,143.85,15.9041]
[1724896445879,6.9508,143.87,143.81,21.4811]
[1724896446875,45.25098,143.86,143.81,21.4811]
[1724896447075,0.25098,143.86,143.81,21.4811]
[1724896448984,0.12549,143.86,143.81,21.4811]
[1724896449187,13.04830004,143.88,143.81,21.4811]
[1724896449484,20.0,143.87,143.81,21.4811]
[1724896450273,20.0,143.88,143.81,21.4811]
[1724896451303,20.0,143.88,143.82,16.5869]
[1724896451495,19.99720004,143.91,143.82,16.5869]
[1724896451785,65.25098,143.9,143.82,16.5869]
[1724896451999,13.04830004,143.87,143.82,16.5869]
[1724896452171,45.25098,143.86,143.82,16.5869]
[1724896452790,13.04830004,143.85,143.82,16.5869]
[1724896453771,13.04830004,143.87,143.82,16.5869]
[1724896453980,20.0,143.86,143.82,16.5869]
[1724896455993,20.0,143.88,143.82,16.5869]
[1724896462193,26.9503,143.88,143.82,16.5869]
[1724896466872,6.9486,143.92,143.84,13.04830004]
[1724896467197,393.34830004,143.94,143.85,6.1406]
[1724896467372,13.04830004,143.94,143.85,6.1406]
[1724896468280,6.9487,143.91,143.85,6.1406]
[1724896468474,20.25098,143.9,143.85,6.1406]
[1724896468794,13.04830004,143.88,143.83,16.5233]
[1724896468972,20.0,143.87,143.83,16.5233]
[1724896469292,33.29928004,143.9,143.83,16.5233]
[1724896469476,20.0,143.9,143.83,16.5233]
[1724896469875,20.0,143.9,143.83,29.57160004]
[1724896470194,13.04830004,143.92,143.84,23.11771125]
[1724896470776,2.87893495,143.95,143.84,23.11771125]
[1724896470777,2.87893495,143.95,143.85,29.67920004]
[1724896470972,13.04830004,143.94,143.86,0.81679767]
[1724896471179,19.99580004,143.94,143.86,0.81679767]
[1724896471477,20.0,143.93,143.86,0.81679767]
[1724896471986,20.0,143.93,143.85,29.67920004]
[1724896473269,13.17379004,143.92,143.85,16.6309]
[1724896473471,20.0,143.91,143.85,16.6309]
[1724896477599,13.04830004,143.9,143.85,16.6309]
[1724896479475,13.04830004,143.86,143.85,16.6309]
[1724896479898,33.17379004,143.86,143.85,16.6309]
[1724896480075,33.29928004,143.86,143.81,16.2481]
[1724896480278,13.04830004,143.84,143.81,16.2481]
[1724896481871,20.0,143.86,143.81,16.2481]
[1724896482076,13.04830004,143.87,143.81,16.2481]
[1724896482382,20.12549,143.86,143.81,16.2481]
[1724896486295,20.0,143.86,143.81,16.2481]
[1724896493189,26.9512,143.86,143.81,16.2481]
[1724896494411,20.0,143.86,143.81,16.2481]
[1724896500693,13.04830004,143.85,143.81,16.2481]
[1724896503111,20.00020004,143.85,143.81,16.2481]
[1724896503317,45.12549,143.84,143.81,16.2481]
[1724896503502,20.00020004,143.85,143.81,16.2481]
[1724896504918,13.04830004,143.85,143.81,16.2481]
[1724896506094,20.00010004,143.85,143.81,16.2481]
[1724896506298,0.25098,143.84,143.81,16.2481]
[1724896508298,20.0,143.86,143.81,16.2481]
[1724896508504,20.0,143.87,143.81,16.2481]
[1724896508714,13.04830004,143.88,143.81,16.2481]
[1724896509023,20.0,143.87,143.82,1.38782919]
[1724896509923,20.0,143.87,143.81,16.2481]
[1724896512721,19.99760004,143.9,143.81,13.04830004]
[1724896512918,20.0,143.89,143.82,16.2969]
[1724896513219,20.0,143.89,143.84,15.0408]
[1724896513422,33.04830004,143.91,143.84,15.0408]